fUSD/lending_fUSD_20241104
["ID","MTS","AMOUNT","RATE_DAILY","PERIOD"]
[341295340,1730742702307,-500.0,0.00035068,2]
[341295341,1730742702316,-500.0,0.00035068,2]
[341295342,1730742702327,-500.0,0.00035068,2]
[341295343,1730742702338,-528.38,0.0003534,2]
[341295344,1730742702348,-723.76,0.0003534,2]
[341295345,1730742702358,-1062.99,0.0003534,2]
[341295346,1730742702368,-508.17,0.0003534,2]
[341295347,1730742702378,-903.75,0.0003534,2]
[341295348,1730742702387,-500.0,0.00035342,2]
[341295349,1730742702397,-532.8,0.00035342,2]
[341295350,1730742702407,-468.05,0.00035342,2]
[341295351,1730742702418,-458.60450685,0.00035342,2]
[341295352,1730742702428,-500.0,0.00035342,2]
[341295353,1730742702437,-625.32630834,0.00035342,2]
[341295354,1730742702446,-512.82,0.00035342,2]
[341295355,1730742702455,-500.0,0.00035342,2]
[341295356,1730742702465,-500.0,0.00035342,2]
[341295357,1730742702474,-218.27897018,0.00035342,2]
[341295358,1730742702483,-500.0,0.00035342,2]
[341295359,1730742702492,-500.0,0.00035342,2]
[341295360,1730742702501,-432.70207003,0.00035342,2]
[341295361,1730742702511,-500.0,0.00035342,2]
[341295362,1730742702521,-500.0,0.00035342,2]
[341295363,1730742702532,-500.0,0.00035342,2]
[341295364,1730742702543,-500.0,0.00035342,2]
[341295365,1730742702554,-515.07,0.00035342,2]
[341295366,1730742702565,-500.0,0.00035342,2]
[341295367,1730742702576,-715.3,0.00035342,2]
[341295368,1730742702586,-247.14877893,0.00035342,2]
[341295369,1730742702595,-500.0,0.00035342,2]
[341295370,1730742702606,-500.0,0.00035342,2]
[341295371,1730742702616,-466.42,0.00035342,2]
[341295372,1730742702625,-500.0,0.00035342,2]
[341295373,1730742702635,-500.0,0.00035342,2]
[341295374,1730742702645,-500.0,0.00035342,2]
[341295375,1730742702655,-266.65797767,0.00035342,2]
[341295376,1730742702666,-575.14,0.00035342,2]
[341295377,1730742702677,-500.0,0.00035342,2]
[341295378,1730742702687,-500.0,0.00035342,2]
[341295379,1730742702696,-500.0,0.00035342,2]
[341295380,1730742702707,-652.56,0.00035342,2]
[341295381,1730742702716,-500.0,0.00035342,2]
[341295382,1730742702726,-566.21799454,0.00035342,2]
[341295383,1730742702736,-500.0,0.00035342,2]
[341295384,1730742702746,-500.0,0.00035342,2]
[341295385,1730742702756,-500.0,0.00035342,2]
[341295386,1730742702767,-500.0,0.00035342,2]
[341295387,1730742702776,-613.51,0.00035342,2]
[341295388,1730742702786,-500.0,0.00035342,2]
[341295389,1730742702795,-535.06,0.00035342,2]
[341295390,1730742702806,-600.68,0.00035342,2]
[341295391,1730742702816,-500.0,0.00035342,2]
[341295392,1730742702825,-611.09,0.00035342,2]
[341295393,1730742702835,-781.33,0.00035342,2]
[341295394,1730742702844,-574.92965298,0.00035342,2]
[341295395,1730742702854,-500.0,0.00035342,2]
[341295396,1730742702865,-698.73,0.00035342,2]
[341295397,1730742702875,-457.37026537,0.00035342,2]
[341295398,1730742702885,-557.68,0.00035342,2]
[341295399,1730742702894,-500.0,0.00035342,2]
[341295400,1730742702904,-500.0,0.00035342,2]
[341295401,1730742702914,-500.0,0.00035342,2]
[341295402,1730742702925,-1417.47,0.00035342,2]
[341295403,1730742702940,-826.6,0.00035342,2]
[341295404,1730742702950,-500.0,0.00035342,2]
[341295405,1730742702959,-914.52,0.00035342,2]
[341295406,1730742702967,-574.52,0.00035342,2]
[341295407,1730742702977,-293.89,0.00035342,2]
[341295408,1730742702987,-2019.64,0.00035342,2]
[341295409,1730742702996,-500.0,0.00035342,2]
[341295410,1730742703006,-500.0,0.00035342,2]
[341295411,1730742703015,-2888.83,0.00035342,2]
[341295412,1730742703024,-500.0,0.00035342,2]
[341295413,1730742703033,-500.0,0.00035342,2]
[341295414,1730742703042,-500.0,0.00035342,2]
[341295415,1730742703051,-500.0,0.00035342,2]
[341295416,1730742703060,-500.0,0.00035342,2]
[341295417,1730742703069,-500.0,0.00035342,2]
[341295418,1730742703078,-500.0,0.00035342,2]
[341295419,1730742703087,-500.0,0.00035342,2]
[341295420,1730742703096,-151.0,0.00035342,7]
[341295421,1730742703105,-500.0,0.00035342,2]
[341295422,1730742703114,-500.0,0.00035342,2]
[341295423,1730742703124,-500.0,0.00035342,2]
[341295424,1730742703133,-500.0,0.00035342,2]
[341295425,1730742703142,-500.0,0.00035342,2]
[341295426,1730742703152,-500.0,0.00035342,2]
[341295427,1730742703161,-500.0,0.00035342,2]
[341295428,1730742703170,-151.0,0.00035342,7]
[341295429,1730742703180,-299.78103361,0.00035342,2]
[341295430,1730742703190,-500.0,0.00035342,2]
[341295431,1730742703199,-353.72588002,0.00035342,2]
[341295432,1730742703209,-500.0,0.00035342,2]
[341295433,1730742703218,-500.0,0.00035342,2]
[341295434,1730742703227,-500.0,0.00035342,2]
[341295435,1730742703237,-500.0,0.00035342,2]
[341295436,1730742703246,-500.0,0.00035342,2]
[341295437,1730742703255,-483.337225,0.00035342,2]
[341295438,1730742703264,-377.67086924,0.00035342,2]
[341295439,1730742703274,-156.71,0.00035342,2]
[341295440,1730742703283,-500.0,0.00035342,2]
[341295441,1730742703292,-500.0,0.00035342,2]
[341295442,1730742703302,-670.23,0.00035342,2]
[341295443,1730742703311,-808.56,0.00035342,2]
[341295444,1730742703321,-441.32,0.00035342,2]
[341295445,1730742703331,-514.05,0.00035342,2]
[341295446,1730742703343,-500.0,0.00035342,2]
[341295447,1730742703354,-500.0,0.00035342,2]
[341295448,1730742703364,-603.69268724,0.00035342,2]
[341295449,1730742703375,-500.0,0.00035342,2]
[341295450,1730742703386,-500.0,0.00035342,2]
[341295451,1730742703395,-500.0,0.00035342,2]
[341295452,1730742703504,-524.62,0.00035342,2]
[341295453,1730742703514,-500.0,0.00035342,2]
[341295454,1730742703523,-500.0,0.00035342,2]
[341295455,1730742703535,-500.0,0.00035342,2]
[341295456,1730742703545,-772.27,0.00035342,2]
[341295457,1730742703555,-504.60048859,0.00035342,2]
[341295458,1730742703566,-500.0,0.00035342,2]
[341295459,1730742703575,-500.0,0.00035342,2]
[341295460,1730742703585,-533.41,0.00035342,2]
[341295461,1730742703594,-1796.31,0.00035342,2]
[341295462,1730742703604,-500.0,0.00035342,2]
[341295463,1730742703614,-892.76,0.00035342,2]
[341295464,1730742703623,-500.0,0.00035342,2]
[341295465,1730742703633,-500.0,0.00035342,2]
[341295466,1730742703644,-1079.31,0.00035342,2]
[341295467,1730742703656,-500.0,0.00035342,2]
[341295468,1730742703667,-1578.1,0.00035342,2]
[341295469,1730742703678,-531.9,0.00035342,2]
[341295470,1730742703687,-548.32,0.00035342,2]
[341295471,1730742703697,-500.0,0.00035342,2]
[341295472,1730742703706,-500.0,0.00035342,2]
[341295473,1730742703715,-500.0,0.00035342,2]
[341295474,1730742703726,-648.18,0.00035342,2]
[341295475,1730742703735,-500.0,0.00035342,2]
[341295476,1730742703746,-1746.57,0.00035342,2]
[341295477,1730742703756,-584.05,0.00035342,2]
[341295478,1730742703769,-874.94,0.00035342,2]
[341295479,1730742703780,-500.0,0.00035342,2]
[341295480,1730742703789,-500.0,0.00035342,2]
[341295481,1730742703798,-1114.7,0.00035342,2]
[341295482,1730742703809,-749.38,0.00035342,2]
[341295483,1730742703820,-514.3,0.00035342,2]
[341295484,1730742703831,-500.0,0.00035342,2]
[341295485,1730742703841,-686.19,0.00035342,2]
[341295486,1730742703851,-500.0,0.00035342,2]
[341295487,1730742703863,-500.0,0.00035342,2]
[341295488,1730742703875,-500.0,0.00035342,2]
[341295489,1730742703885,-937.69,0.00035342,2]
[341295490,1730742703895,-500.0,0.00035342,2]
[341295491,1730742703904,-951.16,0.00035342,2]
[341295492,1730742703913,-500.0,0.00035342,2]
[341295493,1730742703922,-500.0,0.00035342,2]
[341295494,1730742703934,-500.0,0.00035342,2]
[341295495,1730742703946,-583.33880985,0.00035342,2]
[341295496,1730742703956,-796.06,0.00035342,2]
[341295497,1730742703966,-1490.66,0.00035342,2]
[341295498,1730742703975,-500.0,0.00035342,2]
[341295499,1730742703984,-1020.75,0.00035342,2]
[341295500,1730742703994,-239.94,0.00035342,2]
[341295501,1730742704004,-940.86,0.00035342,2]
[341295502,1730742704014,-500.0,0.00035342,2]
[341295503,1730742704023,-500.0,0.00035342,2]
[341295504,1730742704032,-500.0,0.00035342,2]
[341295505,1730742704041,-500.0,0.00035342,2]
[341295506,1730742704051,-582.98,0.00035342,2]
[341295507,1730742704061,-562.81,0.00035342,2]
[341295508,1730742704070,-500.0,0.00035342,2]
[341295509,1730742704079,-806.05,0.00035342,2]
[341295510,1730742704090,-1395.9,0.00035342,2]
[341295511,1730742704099,-500.0,0.00035342,2]
[341295512,1730742704108,-543.31,0.00035342,2]
[341295513,1730742704118,-500.0,0.00035342,2]
[341295514,1730742704128,-500.0,0.00035342,2]
[341295515,1730742704137,-500.0,0.00035342,2]
[341295516,1730742704147,-757.63,0.00035342,2]
[341295517,1730742704156,-500.0,0.00035342,2]
[341295518,1730742704167,-594.4,0.00035342,2]
[341295519,1730742704178,-310.54953076,0.00035342,2]
[341295520,1730742704187,-500.0,0.00035342,2]
[341295521,1730742704197,-500.0,0.00035342,2]
[341295522,1730742704206,-500.0,0.00035342,2]
[341295523,1730742704216,-500.0,0.00035342,2]
[341295524,1730742704227,-856.45,0.00035342,2]
[341295525,1730742704237,-500.0,0.00035342,2]
[341295526,1730742704249,-500.0,0.00035342,2]
[341295527,1730742704260,-500.0,0.00035342,2]
[341295528,1730742704270,-951.82,0.00035342,2]
[341295529,1730742704282,-500.0,0.00035342,2]
[341295530,1730742704291,-500.0,0.00035342,2]
[341295531,1730742704302,-500.0,0.00035342,2]
[341295532,1730742704312,-500.0,0.00035342,2]
[341295533,1730742704322,-496.1077,0.00035342,2]
[341295534,1730742704331,-500.0,0.00035342,2]
[341295535,1730742704341,-529.8,0.00035342,2]
[341295536,1730742704350,-500.0,0.00035342,2]
[341295537,1730742704361,-500.0,0.00035342,2]
[341295538,1730742704372,-515.42,0.00035342,2]
[341295539,1730742704382,-500.0,0.00035342,2]
[341295540,1730742704391,-500.0,0.00035342,2]
[341295541,1730742704401,-500.0,0.00035342,2]
[341295542,1730742704410,-500.0,0.00035342,2]
[341295543,1730742704421,-500.0,0.00035342,2]
[341295544,1730742704431,-500.0,0.00035342,2]
[341295545,1730742704441,-500.0,0.00035342,2]
[341295546,1730742704450,-1338.47,0.00035342,2]
[341295547,1730742704459,-1486.93,0.00035342,2]
[341295548,1730742704470,-1030.08,0.00035342,2]
[341295549,1730742704482,-1253.18,0.00035342,2]
[341295550,1730742704493,-500.0,0.00035342,2]
[341295551,1730742704503,-733.3,0.00035342,2]
[341295552,1730742704514,-416.32,0.00035342,2]
[341295553,1730742704523,-500.0,0.00035342,2]
[341295554,1730742704534,-520.84462417,0.00035342,2]
[341295555,1730742704543,-500.0,0.00035342,2]
[341295556,1730742704552,-500.0,0.00035342,2]
[341295557,1730742704563,-500.0,0.00035342,2]
[341295558,1730742704572,-500.0,0.00035342,2]
[341295559,1730742704582,-500.0,0.00035342,2]
[341295560,1730742704591,-500.0,0.00035342,2]
[341295561,1730742704601,-500.0,0.00035342,2]
[341295562,1730742704610,-650.17,0.00035342,2]
[341295563,1730742704620,-500.0,0.00035342,2]
[341295564,1730742704630,-500.0,0.00035342,2]
[341295565,1730742704640,-624.36078714,0.00035342,2]
[341295566,1730742704650,-441.46,0.00035342,2]
[341295567,1730742704660,-383.00973181,0.00035342,2]
[341295568,1730742704670,-807.65,0.00035342,2]
[341295569,1730742704680,-500.0,0.00035342,2]
[341295570,1730742704689,-500.0,0.00035342,2]
[341295571,1730742704700,-500.0,0.00035342,2]
[341295572,1730742704709,-500.0,0.00035342,2]
[341295573,1730742704720,-528.38,0.00035614,2]
[341295574,1730742704730,-723.76,0.00035614,2]
[341295575,1730742704740,-1062.99,0.00035614,2]
[341295576,1730742704750,-508.17,0.00035614,2]
[341295577,1730742704761,-903.75,0.00035614,2]
[341295578,1730742704772,-217.183028,0.00035614,7]
[341295579,1730742704782,-232.59,0.00035616,2]
[341295580,1730742704793,-430.7,0.00035616,2]
[341295581,1730742704803,-500.0,0.00035616,2]
[341295582,1730742704812,-382.48748087,0.00035616,2]
[341295583,1730742704823,-500.0,0.00035616,2]
[341295584,1730742704832,-365.49304393,0.00035616,2]
[341295585,1730742704842,-500.0,0.00035616,2]
[341295586,1730742704851,-172.130372,0.00035616,2]
[341295587,1730742704862,-500.0,0.00035616,2]
[341295588,1730742704873,-500.0,0.00035616,2]
[341295589,1730742704882,-515.07,0.00035616,2]
[341295590,1730742704891,-500.0,0.00035616,2]
[341295591,1730742704900,-715.3,0.00035616,2]
[341295592,1730742704910,-500.0,0.00035616,2]
[341295593,1730742704919,-307.64,0.00035616,2]
[341295594,1730742704930,-500.0,0.00035616,2]
[341295595,1730742704940,-535.7371286,0.00035616,2]
[341295596,1730742704949,-500.0,0.00035616,2]
[341295597,1730742704959,-575.14,0.00035616,2]
[341295598,1730742704968,-500.0,0.00035616,2]
[341295599,1730742704977,-500.0,0.00035616,2]
[341295600,1730742704986,-500.0,0.00035616,2]
[341295601,1730742704996,-652.56,0.00035616,2]
[341295602,1730742705005,-500.0,0.00035616,2]
[341295603,1730742705015,-950.493,0.00035616,120]
[341295604,1730742705024,-500.0,0.00035616,2]
[341295605,1730742705034,-500.0,0.00035616,2]
[341295606,1730742705044,-156.54510457,0.00035616,2]
[341295607,1730742705053,-386.37,0.00035616,2]
[341295608,1730742705062,-500.0,0.00035616,2]
[341295609,1730742705071,-535.06,0.00035616,2]
[341295610,1730742705173,-600.68,0.00035616,2]
[341295611,1730742705186,-500.0,0.00035616,2]
[341295612,1730742705195,-611.09,0.00035616,2]
[341295613,1730742705205,-781.33,0.00035616,2]
[341295614,1730742705214,-500.0,0.00035616,2]
[341295615,1730742705224,-698.73,0.00035616,2]
[341295616,1730742705234,-557.68,0.00035616,2]
[341295617,1730742705243,-500.0,0.00035616,2]
[341295618,1730742705253,-500.0,0.00035616,2]
[341295619,1730742705263,-500.0,0.00035616,2]
[341295620,1730742705272,-826.6,0.00035616,2]
[341295621,1730742705281,-1417.47,0.00035616,2]
[341295622,1730742705291,-165.539799,0.00035616,7]
[341295623,1730742705300,-558.12795661,0.00035616,2]
[341295624,1730742705310,-914.52,0.00035616,2]
[341295625,1730742705319,-167.622108,0.00035616,7]
[341295626,1730742705329,-574.52,0.00035616,2]
[341295627,1730742705338,-293.89,0.00035616,2]
[341295628,1730742705348,-2019.64,0.00035616,2]
[341295629,1730742705357,-151.0,0.00035616,7]
[341295630,1730742705366,-151.0,0.00035616,7]
[341295631,1730742705376,-500.0,0.00035616,2]
[341295632,1730742705385,-151.0,0.00035616,7]
[341295633,1730742705395,-500.0,0.00035616,2]
[341295634,1730742705404,-2888.83,0.00035616,2]
[341295635,1730742705415,-500.0,0.00035616,2]
[341295636,1730742705425,-500.0,0.00035616,2]
[341295637,1730742705436,-500.0,0.00035616,2]
[341295638,1730742705446,-472.78770932,0.00035616,2]
[341295639,1730742705455,-500.0,0.00035616,2]
[341295640,1730742705464,-500.0,0.00035616,2]
[341295641,1730742705473,-500.0,0.00035616,2]
[341295642,1730742705482,-500.0,0.00035616,2]
[341295643,1730742705491,-500.0,0.00035616,2]
[341295644,1730742705501,-500.0,0.00035616,2]
[341295645,1730742705510,-500.0,0.00035616,2]
[341295646,1730742705519,-500.0,0.00035616,2]
[341295647,1730742705529,-500.0,0.00035616,2]
[341295648,1730742705538,-500.0,0.00035616,2]
[341295649,1730742705547,-500.0,0.00035616,2]
[341295650,1730742705557,-500.0,0.00035616,2]
[341295651,1730742705566,-500.0,0.00035616,2]
[341295652,1730742705576,-500.0,0.00035616,2]
[341295653,1730742705586,-500.0,0.00035616,2]
[341295654,1730742705595,-500.0,0.00035616,2]
[341295655,1730742705605,-500.0,0.00035616,2]
[341295656,1730742705614,-500.0,0.00035616,2]
[341295657,1730742705623,-670.23,0.00035616,2]
[341295658,1730742705633,-808.56,0.00035616,2]
[341295659,1730742705642,-500.0,0.00035616,2]
[341295660,1730742705652,-500.0,0.00035616,2]
[341295661,1730742705661,-500.0,0.00035616,2]
[341295662,1730742705671,-500.0,0.00035616,2]
[341295663,1730742705682,-193.24,0.00035616,2]
[341295664,1730742705692,-500.0,0.00035616,2]
[341295665,1730742705701,-357.55,0.00035616,2]
[341295666,1730742705710,-500.0,0.00035616,2]
[341295667,1730742705719,-772.27,0.00035616,2]
[341295668,1730742705729,-585.50404903,0.00035616,2]
[341295669,1730742705738,-500.0,0.00035616,2]
[341295670,1730742705747,-1796.31,0.00035616,2]
[341295671,1730742705756,-500.0,0.00035616,2]
[341295672,1730742705766,-892.76,0.00035616,2]
[341295673,1730742705775,-500.0,0.00035616,2]
[341295674,1730742705785,-500.0,0.00035616,2]
[341295675,1730742705794,-1079.31,0.00035616,2]
[341295676,1730742705803,-500.0,0.00035616,2]
[341295677,1730742705812,-1578.1,0.00035616,2]
[341295678,1730742705822,-2000.0,0.00035616,120]
[341295679,1730742705831,-548.32,0.00035616,2]
[341295680,1730742705841,-500.0,0.00035616,2]
[341295681,1730742705851,-500.0,0.00035616,2]
[341295682,1730742705860,-500.0,0.00035616,2]
[341295683,1730742705874,-648.18,0.00035616,2]
[341295684,1730742705895,-375.14,0.00035616,2]
[341295685,1730742705913,-1746.57,0.00035616,2]
[341295686,1730742705931,-584.05,0.00035616,2]
[341295687,1730742705951,-874.94,0.00035616,2]
[341295688,1730742705970,-500.0,0.00035616,2]
[341295689,1730742705988,-500.0,0.00035616,2]
[341295690,1730742706005,-1114.7,0.00035616,2]
[341295691,1730742706019,-749.38,0.00035616,2]
[341295692,1730742706037,-514.3,0.00035616,2]
[341295693,1730742706057,-374.28,0.00035616,2]
[341295694,1730742706073,-686.19,0.00035616,2]
[341295695,1730742706088,-999.0,0.00035616,120]
[341295696,1730742706104,-500.0,0.00035616,2]
[341295697,1730742706120,-500.0,0.00035616,2]
[341295698,1730742706134,-641.2153313,0.00035616,2]
[341295699,1730742706149,-937.69,0.00035616,2]
[341295700,1730742706164,-500.0,0.00035616,2]
[341295701,1730742706179,-951.16,0.00035616,2]
[341295702,1730742706194,-500.0,0.00035616,2]
[341295703,1730742706207,-500.0,0.00035616,2]
[341295704,1730742706222,-491.6,0.00035616,2]
[341295705,1730742706236,-796.06,0.00035616,2]
[341295706,1730742706250,-1490.66,0.00035616,2]
[341295707,1730742706266,-500.0,0.00035616,2]
[341295708,1730742706280,-1000.0,0.00035616,2]
[341295709,1730742706294,-1000.0,0.00035616,2]
[341295710,1730742706309,-1000.0,0.00035616,2]
[341295711,1730742706324,-1000.0,0.00035616,2]
[341295712,1730742706338,-1000.0,0.00035616,2]
[341295713,1730742706352,-910.19129161,0.00035616,2]
[341295714,1730742706366,-1020.75,0.00035616,2]
[341295715,1730742706379,-151.0,0.00035616,7]
[341295716,1730742706394,-940.86,0.00035616,2]
[341295717,1730742706408,-500.0,0.00035616,2]
[341295718,1730742706422,-500.0,0.00035616,2]
[341295719,1730742706436,-500.0,0.00035616,2]
[341295720,1730742706450,-500.0,0.00035616,2]
[341295721,1730742706464,-151.0,0.00035616,7]
[341295722,1730742706478,-582.98,0.00035616,2]
[341295723,1730742706492,-562.81,0.00035616,2]
[341295724,1730742706506,-806.05,0.00035616,2]
[341295725,1730742706521,-1395.9,0.00035616,2]
[341295726,1730742706534,-500.0,0.00035616,2]
[341295727,1730742706549,-543.31,0.00035616,2]
[341295728,1730742706563,-500.0,0.00035616,2]
[341295729,1730742706576,-500.0,0.00035616,2]
[341295730,1730742706590,-500.0,0.00035616,2]
[341295731,1730742706605,-757.63,0.00035616,2]
[341295732,1730742706619,-500.0,0.00035616,2]
[341295733,1730742706633,-594.4,0.00035616,2]
[341295734,1730742706647,-151.0,0.00035616,7]
[341295735,1730742706662,-500.0,0.00035616,2]
[341295736,1730742706676,-500.0,0.00035616,2]
[341295737,1730742706691,-500.0,0.00035616,2]
[341295738,1730742706704,-856.45,0.00035616,2]
[341295739,1730742706719,-403.94543645,0.00035616,2]
[341295740,1730742706732,-500.0,0.00035616,2]
[341295741,1730742706746,-158.610533,0.00035616,7]
[341295742,1730742706760,-500.0,0.00035616,2]
[341295743,1730742706774,-951.82,0.00035616,2]
[341295744,1730742706789,-500.0,0.00035616,2]
[341295745,1730742706804,-500.0,0.00035616,2]
[341295746,1730742706819,-500.0,0.00035616,2]
[341295747,1730742706834,-500.0,0.00035616,2]
[341295748,1730742706848,-500.0,0.00035616,2]
[341295749,1730742706863,-500.0,0.00035616,2]
[341295750,1730742706878,-500.0,0.00035616,2]
[341295751,1730742706893,-515.42,0.00035616,2]
[341295752,1730742706907,-151.0,0.00035616,7]
[341295753,1730742706924,-1047.346902,0.00035616,7]
[341295754,1730742706940,-500.0,0.00035616,2]
[341295755,1730742707084,-1047.346902,0.00035616,7]
[341295756,1730742707094,-500.0,0.00035616,2]
[341295757,1730742707103,-500.0,0.00035616,2]
[341295758,1730742707112,-296.749264,0.00035616,7]
[341295759,1730742707121,-500.0,0.00035616,2]
[341295760,1730742707130,-500.0,0.00035616,2]
[341295761,1730742707140,-321.68,0.00035616,2]
[341295762,1730742707149,-151.0,0.00035616,7]
[341295763,1730742707158,-500.0,0.00035616,2]
[341295764,1730742707168,-1338.47,0.00035616,2]
[341295765,1730742707176,-1486.93,0.00035616,2]
[341295766,1730742707190,-1030.08,0.00035616,2]
[341295767,1730742707200,-1253.18,0.00035616,2]
[341295768,1730742707209,-493.52503611,0.00035616,2]
[341295769,1730742707219,-733.3,0.00035616,2]
[341295770,1730742707228,-500.0,0.00035616,2]
[341295771,1730742707237,-500.0,0.00035616,2]
[341295772,1730742707246,-489.9964646,0.00035616,2]
[341295773,1730742707255,-500.0,0.00035616,2]
[341295774,1730742707264,-500.0,0.00035616,2]
[341295775,1730742707273,-500.0,0.00035616,2]
[341295776,1730742707282,-500.0,0.00035616,2]
[341295777,1730742707291,-500.0,0.00035616,2]
[341295778,1730742707301,-650.17,0.00035616,2]
[341295779,1730742707311,-500.0,0.00035616,2]
[341295780,1730742707320,-500.0,0.00035616,2]
[341295781,1730742707329,-461.74884,0.00035616,7]
[341295782,1730742707338,-807.65,0.00035616,2]
[341295783,1730742707347,-461.74884,0.00035616,7]
[341295784,1730742707356,-500.0,0.00035616,2]
[341295785,1730742707365,-500.0,0.00035616,2]
[341295786,1730742707374,-500.0,0.00035616,2]
[341295787,1730742707384,-500.0,0.00035616,2]
[341295788,1730742707394,-151.0,0.00035616,7]
[341295789,1730742707403,-226.3046768,0.00035616,7]
[341295790,1730742707412,-500.0,0.00035616,13]
[341295791,1730742707421,-500.0,0.00035616,13]
[341295792,1730742707430,-500.0,0.00035616,13]
[341295793,1730742707439,-500.0,0.00035616,13]
[341295794,1730742707449,-500.0,0.00035616,13]
[341295795,1730742707458,-500.0,0.00035616,13]
[341295796,1730742707467,-500.0,0.00035616,13]
[341295797,1730742707476,-500.0,0.00035616,13]
[341295798,1730742707486,-500.0,0.00035616,13]
[341295799,1730742707495,-500.0,0.00035616,13]
[341295800,1730742707504,-500.0,0.00035616,13]
[341295801,1730742707513,-500.0,0.00035616,13]
[341295802,1730742707522,-500.0,0.00035616,13]
[341295803,1730742707531,-500.0,0.00035616,13]
[341295804,1730742707540,-500.0,0.00035616,13]
[341295805,1730742707549,-500.0,0.00035616,13]
[341295806,1730742707559,-500.0,0.00035616,13]
[341295807,1730742707568,-544.0,0.00035616,13]
[341295808,1730742707577,-500.0,0.00035616,13]
[341295809,1730742707586,-500.0,0.00035616,13]
[341295810,1730742707596,-500.0,0.00035616,13]
[341295811,1730742707605,-500.0,0.00035616,13]
[341295812,1730742707614,-500.0,0.00035616,13]
[341295813,1730742707623,-500.0,0.00035616,13]
[341295814,1730742707632,-500.0,0.00035616,13]
[341295815,1730742707642,-500.0,0.00035616,13]
[341295816,1730742707651,-500.0,0.00035616,13]
[341295817,1730742707659,-500.0,0.00035616,13]
[341295818,1730742707668,-500.0,0.00035616,13]
[341295819,1730742707678,-500.0,0.00035616,13]
[341295820,1730742707688,-500.0,0.00035616,13]
[341295821,1730742707697,-500.0,0.00035616,13]
[341295822,1730742707706,-500.0,0.00035616,13]
[341295823,1730742707715,-500.0,0.00035616,13]
[341295824,1730742707725,-500.0,0.00035616,13]
[341295825,1730742707734,-500.0,0.00035616,13]
[341295826,1730742707743,-500.0,0.00035616,13]
[341295827,1730742707752,-500.0,0.00035616,13]
[341295828,1730742707761,-500.0,0.00035616,13]
[341295829,1730742707770,-500.0,0.00035616,13]
[341295830,1730742707779,-500.0,0.00035616,13]
[341295831,1730742707788,-500.0,0.00035616,13]
[341295832,1730742707797,-500.0,0.00035616,13]
[341295833,1730742707807,-500.0,0.00035616,13]
[341295834,1730742707816,-500.0,0.00035616,13]
[341295835,1730742707825,-500.0,0.00035616,13]
[341295836,1730742707835,-500.0,0.00035616,13]
[341295837,1730742707844,-500.0,0.00035616,13]
[341295838,1730742707853,-500.0,0.00035616,13]
[341295839,1730742707866,-500.0,0.00035616,13]